bitfinex-derivatives/quotes_SOLF0:USTF0_20250101
["timestamp","ask_amount","ask_price","bid_price","bid_amount"]
[1735757015185,3.0,191.78,191.72,8.37173904]
[1735757015386,3.0,191.78,191.68,4.6578]
[1735757015695,3.0,191.78,191.76,8.37173904]
[1735757016492,2.6131,191.77,191.76,8.37173904]
[1735757018396,2.6134,191.75,191.74,8.37173904]
[1735757018792,3.0,191.78,191.72,8.37173904]
[1735757020498,11.37173904,191.78,191.7,8.37173904]
[1735757020994,2.6139,191.71,191.65,3.0]
[1735757021190,11.37173904,191.78,191.7,8.37173904]
[1735757021493,11.37173904,191.78,191.72,8.37173904]
[1735757021696,11.37173904,191.78,191.7,8.37173904]
[1735757022596,2.614,191.71,191.7,8.37173904]
[1735757026602,2.6137,191.73,191.7,8.37173904]
[1735757026902,2.6137,191.73,191.72,8.37173904]
[1735757028902,2.6132,191.77,191.72,8.37173904]
[1735757029098,3.0,191.79,191.74,8.37173904]
[1735757029407,2.6134,191.75,191.74,8.37173904]
[1735757035210,3.0,191.79,191.72,8.37173904]
[1735757035413,2.6137,191.73,191.72,8.37173904]
[1735757038817,2.613,191.78,191.72,8.37173904]
[1735757039011,2.613,191.78,191.65,3.0]
[1735757039012,2.98,191.79,191.76,8.37173904]
[1735757039213,89.67826047,191.79,191.76,8.37173904]
[1735757039914,2.98,191.79,191.76,8.37173904]
[1735757040506,2.6131,191.77,191.76,8.37173904]
[1735757041017,2.613,191.78,191.76,8.37173904]
[1735757041218,89.67826047,191.82,191.77,8.37173904]
[1735757041414,86.69826047,191.81,191.8,8.37173904]
[1735757042622,86.69826047,191.84,191.8,8.37173904]
[1735757042821,86.69826047,191.84,191.71,4.6919]
[1735757043015,95.06999951,191.84,191.76,8.37173904]
[1735757043317,8.37173904,191.82,191.76,8.37173904]
[1735757043520,2.98,191.81,191.76,8.37173904]
[1735757044425,2.6131,191.77,191.76,8.37173904]
[1735757048327,4.4577,191.81,191.74,8.37173904]
[1735757048621,2.6134,191.75,191.74,8.37173904]
[1735757049622,2.6138,191.73,191.68,2.98]
[1735757049824,2.6138,191.73,191.72,8.37173904]
[1735757050729,2.6135,191.75,191.72,8.37173904]
[1735757051023,2.6135,191.75,191.74,8.37173904]
[1735757056529,2.6137,191.73,191.72,8.37173904]
[1735757059025,2.6132,191.77,191.69,2.98]
[1735757059327,112.67942199,191.8,191.72,8.37173904]
[1735757060429,2.6137,191.73,191.72,8.37173904]
[1735757065136,2.98,191.76,191.72,8.37173904]
[1735757065336,2.98,191.76,191.73,8.37173904]
[1735757065938,2.6135,191.74,191.73,8.37173904]
[1735757066928,5.5934,191.76,191.73,8.37173904]
[1735757067132,5.5934,191.76,191.75,8.37173904]
[1735757067332,104.31397499,191.79,191.75,8.37173904]
[1735757067535,104.31397499,191.79,191.77,8.37173904]
[1735757068335,17.61571452,191.81,191.77,8.37173904]
[1735757068639,2.6127,191.8,191.79,8.37173904]
[1735757070444,86.69826047,191.84,191.79,8.37173904]
[1735757070641,86.69826047,191.84,191.81,8.37173904]
[1735757071142,2.6124,191.82,191.81,8.37173904]
[1735757082157,8.37173904,191.83,191.77,8.37173904]
[1735757083454,2.613,191.78,191.77,8.37173904]
[1735757084658,2.6128,191.8,191.77,8.37173904]
[1735757084863,2.6128,191.8,191.79,8.37173904]
[1735757088162,2.6125,191.82,191.79,8.37173904]
[1735757088371,2.6125,191.82,191.81,8.37173904]
[1735757089868,2.6123,191.83,191.81,8.37173904]
[1735757090067,2.6123,191.83,191.82,8.37173904]
[1735757091566,2.6122,191.84,191.82,8.37173904]
[1735757091767,2.6122,191.84,191.83,8.37173904]
[1735757091959,2.96,191.88,191.83,8.37173904]
[1735757092160,2.6119,191.87,191.82,2.96]
[1735757093265,3.2567,191.92,191.82,2.96]
[1735757093572,2.6116,191.89,191.88,8.37173904]
[1735757095670,2.6112,191.91,191.88,8.37173904]
[1735757095871,2.6112,191.91,191.9,8.37173904]
[1735757096775,2.6111,191.92,191.9,8.37173904]
[1735757097070,2.6111,191.92,191.91,8.37173904]
[1735757097273,86.69826047,191.96,191.91,8.37173904]
[1735757097470,3.116,191.97,191.93,8.37173904]
[1735757099468,2.6108,191.95,191.93,8.37173904]
[1735757101976,86.69826047,192.02,191.94,2.94]
[1735757102181,86.69826047,192.03,192.0,8.37173904]
[1735757102379,86.69826047,192.03,192.02,8.37173904]
[1735757103273,2.6092,192.06,192.02,8.37173904]
[1735757103474,2.6092,192.06,192.0,2.94]
[1735757103475,3.1855,192.1,192.05,8.37173904]
[1735757103673,3.1855,192.1,192.04,8.37173904]
[1735757103875,2.6093,192.05,192.04,8.37173904]
[1735757104683,2.6092,192.07,192.04,8.37173904]
[1735757104876,2.6092,192.07,192.06,8.37173904]
[1735757108787,1.5799,192.1,192.06,8.37173904]
[1735757108987,2.6089,192.08,192.06,8.37173904]
[1735757110781,1.6195,192.13,192.06,8.37173904]
[1735757110986,1.6195,192.13,192.08,8.37173904]
[1735757111384,2.6084,192.12,192.1,8.37173904]
[1735757111689,2.6084,192.12,192.11,8.37173904]
[1735757111885,12.89983904,192.19,192.11,8.37173904]
[1735757112188,2.6084,192.12,192.11,8.37173904]
[1735757114291,2.6082,192.14,192.11,8.37173904]
[1735757114590,2.6082,192.14,192.13,8.37173904]
[1735757114996,2.6077,192.17,192.13,11.31173904]
[1735757115187,2.6077,192.17,192.16,8.37173904]
[1735757115685,8.37173904,192.19,192.11,2.94]
[1735757115891,8.37173904,192.19,192.11,11.31173904]
[1735757116086,8.37173904,192.19,192.13,8.37173904]
[1735757116892,2.6081,192.15,192.11,2.94]
[1735757117089,2.6081,192.15,192.14,8.37173904]
[1735757117490,2.6081,192.15,192.11,2.94]
[1735757117688,2.6081,192.15,192.14,8.37173904]
[1735757117886,1.6149,192.23,192.14,8.37173904]
[1735757117887,8.37173904,192.22,192.14,8.37173904]
[1735757118087,3.2051,192.23,192.16,8.37173904]
[1735757118283,3.2051,192.23,192.18,8.37173904]
[1735757118889,2.6071,192.22,192.18,8.37173904]
[1735757119089,3.2051,192.23,192.18,8.37173904]
[1735757119293,3.2051,192.23,192.16,8.37173904]
[1735757119294,11.57683904,192.23,192.16,8.37173904]
[1735757119683,3.2051,192.23,192.16,8.37173904]
[1735757119886,8.37173904,192.21,192.16,8.37173904]
[1735757120088,2.6077,192.17,192.16,8.37173904]
[1735757120288,8.37173904,192.21,192.12,2.94]
[1735757120491,11.31173904,192.21,192.14,8.37173904]
[1735757120994,2.6079,192.15,192.14,8.37173904]
[1735757121192,8.37173904,192.17,192.01,54.24]
[1735757121397,3.2297,192.16,192.1,8.37173904]
[1735757121591,2.6085,192.11,192.1,8.37173904]
[1735757122496,2.6088,192.09,192.08,8.37173904]
[1735757128897,2.6086,192.1,192.08,8.37173904]
[1735757129197,2.6086,192.1,192.09,8.37173904]
[1735757132494,2.6085,192.11,192.09,8.37173904]
[1735757132696,2.6085,192.11,192.1,8.37173904]
[1735757134701,4.7525,192.16,192.1,8.37173904]
[1735757134897,4.7525,192.16,192.07,2.98]
[1735757134898,4.7525,192.16,192.13,8.37173904]
[1735757135398,2.6081,192.14,192.13,8.37173904]
[1735757135800,2.98,192.2,192.13,8.37173904]
[1735757136002,2.6078,192.16,192.15,8.37173904]
[1735757137206,11.35173904,192.23,192.15,8.37173904]
[1735757137506,2.6075,192.19,192.12,2.98]
[1735757138296,2.6076,192.18,192.12,2.98]
[1735757138495,2.6076,192.18,192.17,8.37173904]
[1735757139701,86.69826047,192.32,192.17,11.33173904]
[1735757139899,1.5187,192.31,192.29,8.37173904]
[1735757140104,2.6061,192.29,192.26,2.96]
[1735757140406,1.5187,192.31,192.29,8.37173904]
[1735757140604,88.26656047,192.32,192.29,8.37173904]
[1735757140605,86.69826047,192.32,192.29,8.37173904]
[1735757140801,8.37173904,192.35,192.26,2.96]
[1735757140995,8.37173904,192.35,192.29,8.37173904]
[1735757141506,8.37173904,192.35,192.28,8.37173904]
[1735757144103,2.6055,192.33,192.28,8.37173904]
[1735757144404,8.37173904,192.35,192.28,8.37173904]
[1735757145106,2.606,192.29,192.28,8.37173904]
[1735757145310,8.37173904,192.35,192.28,8.37173904]
[1735757145709,2.6059,192.3,192.28,8.37173904]
[1735757146309,1.5187,192.36,192.28,8.37173904]
[1735757146509,1.5187,192.36,192.3,8.37173904]
[1735757147108,1.5187,192.36,192.32,8.37173904]
[1735757147306,1.5187,192.36,192.3,8.37173904]
[1735757148512,8.37173904,192.33,192.25,8.37173904]
[1735757149010,2.6065,192.26,192.22,2.96]
[1735757149210,8.37173904,192.33,192.22,2.96]
[1735757149510,8.37173904,192.33,192.27,8.37173904]
[1735757149713,2.6062,192.28,192.27,8.37173904]
[1735757150311,2.6065,192.26,192.25,8.37173904]
[1735757155919,8.37173904,192.31,192.22,3.0]
[1735757156120,8.37173904,192.31,192.25,8.37173904]
[1735757156313,2.6067,192.24,192.23,8.37173904]
[1735757156510,11.37173904,192.29,192.21,8.37173904]
[1735757156716,1.5735,192.28,192.21,8.37173904]
[1735757157016,2.6067,192.24,192.23,8.37173904]
[1735757158117,1.5408,192.28,192.23,8.37173904]
[1735757158318,1.5408,192.28,192.27,8.37173904]
[1735757158520,2.6062,192.28,192.27,8.37173904]
[1735757160316,2.6064,192.27,192.25,13.01958029]
[1735757160717,1.5861,192.33,192.25,13.01958029]
[1735757161316,2.6065,192.26,192.25,13.01958029]
[1735757161512,1.5861,192.33,192.22,13.01958029]
[1735757162214,2.6068,192.24,192.22,13.01958029]
[1735757162725,2.6069,192.23,192.22,13.01958029]
[1735757163020,1.5861,192.33,192.22,13.01958029]
[1735757163220,2.6066,192.25,192.22,13.01958029]
[1735757164015,2.6068,192.24,192.22,13.01958029]
[1735757164421,1.5861,192.33,192.22,13.01958029]
[1735757164620,2.6059,192.3,192.22,13.01958029]
[1735757164821,1.5861,192.33,192.22,13.01958029]
[1735757165216,2.6059,192.3,192.22,13.01958029]
[1735757165415,1.5861,192.33,192.22,13.01958029]
[1735757165921,2.6069,192.24,192.22,13.01958029]
[1735757166624,1.5861,192.33,192.22,13.01958029]
[1735757166824,1.5861,192.33,192.25,13.01958029]
[1735757167127,1.5861,192.33,192.28,13.01958029]
[1735757167620,2.606,192.29,192.28,13.01958029]
[1735757167823,1.5861,192.33,192.25,13.01958029]
[1735757168218,2.6063,192.27,192.25,13.01958029]
[1735757168424,1.5861,192.33,192.25,13.01958029]
[1735757168923,2.6065,192.26,192.23,3.0]
[1735757169229,3.0,192.31,192.22,13.01958029]
[1735757169724,2.6061,192.29,192.22,13.01958029]
[1735757169921,3.0,192.31,192.22,13.01958029]
[1735757170318,16.01958029,192.31,192.19,13.01958029]
[1735757170520,1.4753,192.3,192.19,13.01958029]
[1735757170916,2.6071,192.22,192.19,13.01958029]
[1735757172333,105.93619792,192.3,192.19,13.01958029]
[1735757172334,2.6068,192.24,192.19,13.01958029]
[1735757172527,2.6068,192.24,192.22,13.01958029]
[1735757173325,1.4753,192.3,192.22,13.01958029]
[1735757173824,106.04699792,192.33,192.12,4.97601475]
[1735757174031,4.6186,192.32,192.12,4.619]
[1735757174228,4.6186,192.32,192.19,13.01958029]
[1735757175027,86.69826047,192.3,192.19,13.01958029]
[1735757175427,2.6068,192.24,192.19,13.01958029]
[1735757176033,2.6069,192.23,192.19,13.01958029]
[1735757176226,86.69826047,192.3,192.19,13.01958029]
[1735757177224,2.6071,192.21,192.19,13.01958029]
[1735757178232,86.69826047,192.3,192.19,13.01958029]
[1735757178532,13.01958029,192.28,192.16,13.01958029]
[1735757178729,4.616,192.27,192.13,14.53298029]
[1735757179236,1.4847,192.26,192.13,14.53298029]
[1735757179528,88.18296047,192.26,192.13,14.53298029]
[1735757179733,1.529,192.25,192.13,14.53298029]
[1735757180629,14.54858029,192.25,192.13,13.01958029]
[1735757181136,86.69826047,192.24,192.13,13.01958029]
[1735757181630,3.0,192.23,192.13,13.01958029]
[1735757182036,89.69826047,192.23,192.13,13.01958029]
[1735757182631,2.6076,192.18,192.13,13.01958029]
[1735757183029,3.0,192.22,192.13,13.01958029]
[1735757183739,2.6074,192.2,192.13,13.01958029]
[1735757184033,3.0,192.22,192.13,13.01958029]
[1735757184638,2.6079,192.16,192.13,13.01958029]
[1735757184827,3.0,192.22,192.13,13.01958029]
[1735757185032,3.0,192.22,192.1,13.01958029]
[1735757185335,2.6085,192.11,192.1,13.01958029]
[1735757185837,3.06,192.17,192.1,13.01958029]
[1735757186034,2.6083,192.13,192.1,13.01958029]
[1735757186636,2.6084,192.12,192.1,13.01958029]
[1735757187038,3.06,192.17,192.1,13.01958029]
[1735757187737,2.6085,192.11,192.1,13.01958029]
[1735757187938,3.06,192.17,192.1,13.01958029]
[1735757188141,107.82501441,192.22,192.13,13.01958029]
[1735757188944,106.29401441,192.25,192.13,13.01958029]
[1735757189134,3.06,192.24,192.13,13.01958029]
[1735757189646,2.6078,192.17,192.13,13.01958029]
[1735757190139,2.6078,192.16,192.13,13.01958029]
[1735757192344,2.608,192.15,192.13,13.01958029]
[1735757192740,3.06,192.24,192.13,13.01958029]
[1735757192941,13.01958029,192.23,192.1,13.01958029]
[1735757193343,99.97053363,192.23,192.1,13.01958029]
[1735757193847,2.6074,192.2,192.1,13.01958029]
[1735757194042,6.2714,192.19,192.1,13.01958029]
[1735757195845,4.6467,192.19,192.13,13.01958029]
[1735757197852,3.06,192.22,192.13,13.01958029]
[1735757198442,2.6075,192.19,192.13,13.01958029]
[1735757198848,2.6074,192.2,192.13,13.01958029]
[1735757199049,3.06,192.22,192.13,13.01958029]
[1735757199459,2.6075,192.19,192.13,13.01958029]
[1735757199653,3.06,192.22,192.13,13.01958029]
[1735757200057,3.06,192.22,192.03,3.1295]
[1735757200354,3.06,192.22,192.09,13.01958029]
[1735757200856,107.78439777,192.22,192.09,13.01958029]
[1735757201558,107.78439777,192.22,192.12,13.01958029]
[1735757201757,20.83344443,192.22,192.12,13.01958029]
[1735757202255,3.06,192.22,192.12,13.01958029]
[1735757202957,2.6081,192.15,192.12,13.01958029]
[1735757203858,3.06,192.22,192.12,13.01958029]
[1735757204052,3.06,192.22,192.09,16.07958029]
[1735757204053,107.79273772,192.22,192.09,16.07958029]
[1735757204458,107.79273772,192.22,192.03,3.1295]
[1735757204459,13.01958029,192.2,192.06,13.01958029]
[1735757204754,99.97053363,192.2,192.06,13.01958029]
[1735757205557,13.01958029,192.17,192.06,13.01958029]
[1735757205758,6.1273,192.16,192.06,13.01958029]
[1735757205960,2.6082,192.13,192.06,13.01958029]
[1735757206159,7.7254,192.16,192.06,13.01958029]
[1735757206758,2.6087,192.1,192.06,13.01958029]
[1735757209464,7.7254,192.16,192.06,13.01958029]
[1735757209663,2.609,192.08,192.06,13.01958029]
[1735757211258,3.06,192.13,192.06,13.01958029]
[1735757211758,4.6654,192.16,192.06,13.01958029]
[1735757211960,1.5752,192.16,192.09,13.01958029]
[1735757212261,86.95095334,192.18,192.09,13.01958029]
[1735757212760,90.01095334,192.19,192.09,13.01958029]
[1735757213152,90.01095334,192.19,192.1,13.01958029]
[1735757213762,2.6085,192.11,192.1,13.01958029]
[1735757219655,90.01095334,192.19,192.1,13.01958029]
[1735757220362,2.6083,192.13,192.1,13.01958029]
[1735757222161,90.01095334,192.19,192.1,13.01958029]
[1735757223463,2.608,192.15,192.1,13.01958029]
[1735757223864,90.01095334,192.19,192.1,13.01958029]
[1735757224467,90.01095334,192.19,192.15,8.34245622]
[1735757225168,3.06,192.19,192.15,8.34245622]
[1735757225667,2.6078,192.17,192.15,8.34245622]
[1735757226167,3.06,192.19,192.15,8.34245622]
[1735757226467,86.95095334,192.2,192.17,8.34245622]
[1735757226665,86.95095334,192.2,192.19,8.34245622]
[1735757227964,2.6072,192.21,192.19,8.34245622]
[1735757228174,86.95095334,192.22,192.14,3.1277]
[1735757228373,86.95095334,192.22,192.17,8.34245622]
[1735757228770,8.34245622,192.25,192.17,8.34245622]
[1735757229162,2.6075,192.19,192.17,8.34245622]
[1735757229466,8.34245622,192.21,192.15,8.34245622]
[1735757229769,2.6081,192.15,192.13,8.34245622]
[1735757230267,8.34245622,192.19,192.13,8.34245622]
[1735757230466,8.34245622,192.17,192.11,8.34245622]
[1735757230864,3.04,192.16,192.11,8.34245622]
[1735757232270,2.6082,192.14,192.11,8.34245622]
[1735757232474,3.04,192.16,192.11,8.34245622]
[1735757233474,2.6083,192.13,192.11,8.34245622]
[1735757234275,8.34245622,192.15,192.06,3.04]
[1735757234575,8.34245622,192.15,192.08,8.34245622]
[1735757235176,8.34245622,192.13,192.02,1.5633]
[1735757235370,1.6335,192.12,192.08,8.34245622]
[1735757236976,8.34245622,192.15,192.1,8.34245622]
[1735757237172,3.04,192.16,192.1,8.34245622]
[1735757238277,2.6085,192.11,192.1,8.34245622]
[1735757242185,2.6085,192.11,192.08,8.34245622]
[1735757242893,2.6085,192.11,192.1,8.34245622]
[1735757243282,2.6083,192.13,192.1,8.34245622]
[1735757243589,88.49465334,192.17,192.12,8.34245622]
[1735757243787,86.95095334,192.17,192.15,8.34245622]
[1735757244292,86.95095334,192.19,192.15,8.34245622]
[1735757244685,2.6077,192.17,192.15,8.34245622]
[1735757246294,2.6074,192.19,192.15,8.34245622]
[1735757246491,2.6074,192.19,192.17,8.34245622]
[1735757249990,2.6071,192.22,192.17,8.34245622]
[1735757250296,100.15240956,192.25,192.19,8.34245622]
[1735757251289,2.6071,192.22,192.19,8.34245622]
[1735757252493,2.6073,192.2,192.17,8.34245622]
[1735757253696,2.6073,192.2,192.15,3.02]
[1735757253997,2.6071,192.21,192.17,8.34245622]
[1735757254191,2.6071,192.21,192.19,8.34245622]
[1735757254394,86.95095334,192.27,192.19,8.34245622]
[1735757254600,86.95095334,192.27,192.23,8.34245622]
[1735757254796,86.95095334,192.27,192.21,8.34245622]
[1735757254992,86.95095334,192.28,192.21,8.34245622]
[1735757255797,2.6065,192.26,192.23,8.34245622]
[1735757256898,2.6067,192.24,192.23,8.34245622]
[1735757259094,8.34245622,192.29,192.21,8.34245622]
[1735757259303,2.6073,192.2,192.18,8.34245622]
[1735757259492,3.02,192.27,192.18,8.34245622]
[1735757259694,11.36245622,192.27,192.2,8.34245622]
[1735757260495,2.6071,192.21,192.2,8.34245622]
[1735757260690,8.34245622,192.21,192.08,1.5275]
[1735757260898,8.34245622,192.21,192.14,8.34245622]
[1735757261103,1.5758,192.21,192.16,8.34245622]
[1735757261696,1.5758,192.21,192.18,8.34245622]
[1735757261991,3.02,192.23,192.2,8.34245622]
[1735757262192,1.6316,192.25,192.2,8.34245622]
[1735757262390,2.607,192.22,192.2,8.34245622]
[1735757264103,2.6071,192.21,192.2,8.34245622]
[1735757264307,1.6316,192.25,192.16,16.04961978]
[1735757264510,2.6077,192.17,192.13,13.02961978]
[1735757264807,3.02,192.22,192.11,3.02]
[1735757265007,2.6081,192.14,192.1,3.02]
[1735757265201,1.5992,192.21,192.11,13.02961978]
[1735757265402,13.02961978,192.2,192.07,3.02]
[1735757265602,2.6088,192.09,192.06,13.02961978]
[1735757265803,3.02,192.15,192.06,13.02961978]
[1735757266708,2.6088,192.09,192.06,13.02961978]
[1735757267410,3.02,192.15,192.06,13.02961978]
[1735757269610,2.6088,192.09,192.06,13.02961978]
[1735757270507,2.6089,192.08,192.06,13.02961978]
[1735757271116,2.609,192.07,192.06,13.02961978]
[1735757271506,1.6192,192.14,192.04,4.12973789]
[1735757271706,1.4966,192.13,192.04,4.12973789]
[1735757272208,2.6093,192.05,192.04,4.12973789]
[1735757272410,1.4966,192.13,192.03,13.02961978]
[1735757272411,14.52621978,192.13,192.03,13.02961978]
[1735757273017,1.4812,192.12,192.0,13.02961978]
[1735757273307,2.6096,192.03,192.0,13.02961978]
[1735757275314,2.6098,192.02,192.0,13.02961978]
[1735757275921,2.6098,192.01,192.0,13.02961978]
[1735757276819,3.02,192.08,191.97,13.02961978]
[1735757278614,16.04961978,192.08,191.97,13.02961978]
[1735757279515,2.6103,191.98,191.94,13.02961978]
[1735757279721,3.02,192.03,191.94,13.02961978]
[1735757280323,2.6104,191.97,191.94,13.02961978]
[1735757281020,2.6106,191.96,191.94,13.02961978]
[1735757281217,1.5344,192.02,191.94,13.02961978]
[1735757282120,2.6107,191.95,191.94,13.02961978]
[1735757282522,1.5344,192.02,191.91,16.04961978]
[1735757282820,14.56401978,192.02,191.91,13.02961978]
[1735757283125,2.6113,191.91,191.88,13.02961978]
[1735757284125,3.02,191.96,191.88,13.02961978]
[1735757285024,3.02,192.01,191.91,13.02961978]
[1735757285425,1.5344,192.02,191.94,13.02961978]
[1735757285624,4.5544,192.02,191.94,13.02961978]
[1735757286227,2.6102,191.99,191.94,13.02961978]
[1735757286622,4.5544,192.02,191.94,13.02961978]
[1735757286823,2.6105,191.97,191.94,13.02961978]
[1735757287025,4.5544,192.02,191.94,13.02961978]
[1735757288217,2.6107,191.95,191.94,13.02961978]
[1735757289626,2.6105,191.97,191.94,13.02961978]
[1735757289826,4.5544,192.02,191.94,13.02961978]
[1735757290625,2.6103,191.98,191.94,13.02961978]
[1735757290825,4.5544,192.02,191.94,13.02961978]
[1735757291128,2.61,192.01,191.97,13.02961978]
[1735757291428,3.02,192.07,192.0,13.02961978]
[1735757291625,2.9539,192.1,192.0,13.02961978]
[1735757291820,5.9739,192.1,192.0,13.02961978]
[1735757292928,2.6096,192.03,192.0,13.02961978]
[1735757293827,2.9539,192.1,192.0,13.02961978]
[1735757295420,2.9539,192.1,192.03,13.02961978]
[1735757296020,5.9739,192.1,192.03,13.02961978]
[1735757296621,2.9539,192.1,192.03,13.02961978]
[1735757296928,2.6091,192.07,192.03,13.02961978]
[1735757297333,1.5616,192.13,192.03,16.04961978]
[1735757297528,1.5616,192.13,192.06,13.02961978]
[1735757297732,4.5816,192.13,192.06,13.02961978]
[1735757298135,1.5616,192.13,192.06,13.02961978]
[1735757298832,3.02,192.14,192.06,13.02961978]
[1735757299329,14.60811978,192.18,192.06,13.02961978]
[1735757299330,2.6086,192.11,192.06,13.02961978]
[1735757299729,2.6083,192.13,192.09,13.02961978]
[1735757299930,1.5785,192.18,192.09,13.02961978]
[1735757303237,2.6086,192.11,192.09,13.02961978]
[1735757303534,1.5785,192.18,192.09,13.02961978]
[1735757304231,4.5985,192.18,192.09,13.02961978]
[1735757304731,2.6084,192.12,192.09,13.02961978]
[1735757305132,4.5985,192.18,192.09,13.02961978]
[1735757305333,2.6082,192.14,192.09,13.02961978]
[1735757305733,2.608,192.15,192.09,13.02961978]
[1735757306337,4.5985,192.18,192.09,13.02961978]
[1735757306525,1.558,192.19,192.09,13.02961978]
[1735757307630,2.6083,192.13,192.09,13.02961978]
[1735757308934,1.558,192.19,192.09,13.02961978]
[1735757309134,2.6084,192.12,192.09,13.02961978]
[1735757309837,3.02,192.2,192.09,13.02961978]
[1735757310034,2.6082,192.13,192.09,13.02961978]
[1735757311038,2.6086,192.1,192.09,13.02961978]
[1735757311651,2.6086,192.1,192.08,13.02961978]
[1735757312238,2.6085,192.11,192.08,13.02961978]
[1735757315033,2.6084,192.12,192.08,13.02961978]
[1735757316136,2.6084,192.12,192.06,3.02]
[1735757316333,2.6082,192.13,192.06,3.02]
[1735757316635,2.6082,192.13,192.09,13.02961978]
[1735757316941,3.02,192.2,192.09,13.02961978]
[1735757317137,13.02961978,192.17,192.05,3.02]
[1735757317344,3.0197,192.16,192.05,3.02]
[1735757317538,2.6089,192.09,192.05,3.02]
[1735757318243,2.6089,192.09,192.08,8.34761639]
[1735757319949,2.6084,192.12,192.06,8.34761639]
[1735757320147,8.34761639,192.14,192.06,8.34761639]
[1735757320340,8.34761639,192.14,192.08,8.34761639]
[1735757320544,2.6088,192.09,192.08,8.34761639]
[1735757320852,8.34761639,192.14,192.06,8.34761639]
[1735757321355,8.34761639,192.12,192.06,8.34761639]
[1735757322250,2.609,192.07,192.06,8.34761639]
[1735757322447,8.34761639,192.12,192.06,8.34761639]
[1735757322951,2.6089,192.08,192.06,8.34761639]
[1735757324554,2.6085,192.11,192.06,8.34761639]
[1735757324749,11.36761639,192.14,192.08,8.34761639]
[1735757325349,2.6088,192.1,192.08,8.34761639]
[1735757326455,3.0197,192.16,192.08,8.34761639]
[1735757326754,3.0197,192.16,192.12,8.34761639]
[1735757328155,2.6082,192.14,192.12,8.34761639]
[1735757328557,1.4919,192.16,192.12,8.34761639]
[1735757328753,2.608,192.15,192.12,8.34761639]
[1735757330049,1.4919,192.16,192.12,8.34761639]
[1735757330248,2.6081,192.14,192.12,8.34761639]
[1735757331151,11.36761639,192.2,192.12,8.34761639]
[1735757331461,11.36761639,192.2,192.14,8.34761639]
[1735757331750,2.6075,192.19,192.14,8.34761639]
[1735757331951,6.0638,192.21,192.16,8.34761639]
[1735757332148,1.4991,192.21,192.18,8.34761639]
[1735757332346,2.6073,192.2,192.18,8.34761639]
[1735757332955,2.6074,192.19,192.18,8.34761639]
[1735757334058,86.95095334,192.21,192.14,8.34761639]
[1735757334059,8.34761639,192.21,192.14,8.34761639]
[1735757334356,1.5702,192.22,192.12,3.02]
[1735757334855,86.95095334,192.2,192.12,3.02]
[1735757335058,86.95095334,192.2,192.11,13.03617224]
[1735757335259,3.0,192.19,192.11,13.03617224]
[1735757335664,2.6077,192.17,192.11,13.03617224]
[1735757335960,3.0,192.19,192.11,13.03617224]
[1735757336861,2.6081,192.15,192.11,13.03617224]
[1735757338460,2.6081,192.14,192.11,13.03617224]
[1735757339362,3.0,192.19,192.11,13.03617224]
[1735757339551,86.95095334,192.21,192.14,13.03617224]
[1735757339758,88.52115334,192.22,192.14,13.03617224]
[1735757339958,2.6074,192.19,192.14,16.03617224]
[1735757341661,2.6076,192.18,192.14,16.03617224]
[1735757342266,1.5702,192.22,192.14,3.0]
[1735757344256,2.6076,192.18,192.14,3.0]
[1735757345059,2.6077,192.17,192.14,3.0]
[1735757345461,1.5702,192.22,192.14,3.0]
[1735757346663,2.6075,192.19,192.14,3.0]
[1735757346869,1.5702,192.22,192.14,3.0]
[1735757347266,2.6075,192.19,192.14,3.0]
[1735757348068,1.5702,192.22,192.14,3.0]
[1735757348265,2.6076,192.18,192.14,3.0]
[1735757348465,2.6076,192.18,192.15,13.03617224]
[1735757348767,1.5702,192.22,192.15,13.03617224]
[1735757349561,2.6077,192.17,192.15,13.03617224]
[1735757349967,2.6078,192.16,192.15,13.03617224]
[1735757352463,2.6081,192.14,192.12,13.03617224]
[1735757352870,2.6082,192.13,192.09,13.03617224]
[1735757355969,2.6082,192.14,192.09,13.03617224]
[1735757356168,3.0,192.19,192.08,3.0]
[1735757356469,9.90737088,192.18,192.11,8.34597088]
[1735757356667,2.6084,192.12,192.11,8.34597088]
[1735757358869,1.5876,192.17,192.11,8.34597088]
[1735757359068,1.5876,192.17,192.14,8.34597088]